bitfinex-derivatives/quotes_BTCF0:USTF0_20251108
["timestamp","ask_amount","ask_price","bid_price","bid_amount"]
[1762573754508,0.09951577,102800.0,102790.0,0.62563056]
[1762573755100,0.1169276,102800.0,102790.0,0.62563056]
[1762573755300,0.1159276,102800.0,102790.0,0.62563056]
[1762573755903,0.1149276,102800.0,102790.0,0.62563056]
[1762573756112,0.04535,102800.0,102790.0,0.62563056]
[1762573757606,0.09753753,102800.0,102790.0,0.62563056]
[1762573757809,0.04535,102800.0,102790.0,0.62563056]
[1762573758009,0.05318753,102800.0,102790.0,0.62563056]
[1762573758201,0.09755753,102800.0,102790.0,0.62563056]
[1762573758406,0.09855753,102800.0,102790.0,0.62563056]
[1762573758601,0.05418753,102800.0,102790.0,0.62563056]
[1762573759003,0.05318753,102800.0,102790.0,0.62563056]
[1762573759204,0.05218753,102800.0,102790.0,0.62563056]
[1762573759809,0.05218753,102800.0,102790.0,0.77523056]
[1762573761613,0.09655753,102800.0,102790.0,0.77723056]
[1762573762199,0.09655753,102800.0,102790.0,0.77923056]
[1762573763010,0.09655753,102800.0,102790.0,0.77723056]
[1762573763914,0.04437,102800.0,102790.0,0.77723056]
[1762573764305,0.07435339,102800.0,102790.0,0.77723056]
[1762573764507,0.07435339,102800.0,102790.0,0.77523056]
[1762573764719,0.0695776,102800.0,102790.0,0.77523056]
[1762573765012,0.05222115,102800.0,102790.0,0.77523056]
[1762573766519,0.05222115,102800.0,102790.0,0.6640745]
[1762573766721,0.05222115,102800.0,102790.0,0.77523056]
[1762573767204,0.05222115,102800.0,102790.0,0.77723056]
[1762573767924,0.05222115,102800.0,102790.0,0.77523056]
[1762573768218,0.05222115,102800.0,102790.0,0.77923056]
[1762573771925,0.0695776,102810.0,102800.0,0.0973395]
[1762573772214,0.1258932,102820.0,102810.0,0.15499]
[1762573772413,0.1258932,102820.0,102810.0,0.62694606]
[1762573772414,0.0430756,102820.0,102810.0,0.62694606]
[1762573773312,0.0001456,102820.0,102810.0,0.62694606]
[1762573773508,0.0212156,102820.0,102810.0,0.62694606]
[1762573773712,0.0001456,102820.0,102810.0,0.62694606]
[1762573774821,0.0021456,102820.0,102810.0,0.62694606]
[1762573776718,0.0021456,102820.0,102810.0,0.51579]
[1762573776916,0.0021456,102820.0,102810.0,0.62694606]
[1762573777521,0.0232156,102820.0,102810.0,0.62694606]
[1762573777722,0.0021456,102820.0,102810.0,0.62694606]
[1762573781226,0.0011456,102820.0,102810.0,0.62994606]
[1762573781925,0.0001456,102820.0,102810.0,0.63194606]
[1762573782718,0.0001456,102820.0,102810.0,0.62894606]
[1762573783030,0.0001456,102820.0,102810.0,0.63094606]
[1762573783323,0.0001456,102820.0,102810.0,0.78054606]
[1762573784320,0.0437756,102820.0,102810.0,0.78054606]
[1762573786524,0.0001456,102820.0,102810.0,0.78054606]
[1762573786724,0.0449456,102820.0,102810.0,0.78054606]
[1762573789034,0.0001456,102820.0,102810.0,0.78054606]
[1762573789234,0.0449456,102820.0,102810.0,0.78054606]
[1762573789830,0.0449456,102820.0,102810.0,0.77854606]
[1762573791536,0.0449456,102820.0,102810.0,0.77654606]
[1762573793142,0.0001456,102820.0,102810.0,0.77654606]
[1762573793329,0.56832095,102820.0,102810.0,0.04441]
[1762573793530,0.5162461,102820.0,102810.0,0.04441]
[1762573794240,0.15531,102810.0,102800.0,0.04412]
[1762573794539,0.05798,102800.0,102790.0,0.61356766]
[1762573794741,0.1553195,102800.0,102790.0,0.61356766]
[1762573795441,0.56819761,102800.0,102790.0,0.25276766]
[1762573795938,0.56919761,102800.0,102790.0,0.25276766]
[1762573796142,0.56919761,102800.0,102790.0,0.1416116]
[1762573796338,0.5171195,102800.0,102790.0,0.1416116]
[1762573796543,0.5181195,102800.0,102790.0,0.1416116]
[1762573796740,0.57019761,102800.0,102790.0,0.1416116]
[1762573797342,0.20939761,102800.0,102790.0,0.1416116]
[1762573797540,0.47285811,102800.0,102790.0,0.1416116]
[1762573798146,0.47285811,102800.0,102790.0,0.25276766]
[1762573798345,0.11205811,102800.0,102790.0,0.61356766]
[1762573798547,0.05998,102800.0,102790.0,0.61356766]
[1762573799441,0.05898,102800.0,102790.0,0.61356766]
[1762573800452,0.05998,102800.0,102790.0,0.61356766]
[1762573801037,0.20939761,102800.0,102790.0,0.49373166]
[1762573801244,0.57019761,102800.0,102790.0,0.0217756]
[1762573801445,0.57019761,102800.0,102790.0,0.0001456]
[1762573801750,0.5866971,102800.0,102790.0,0.0001456]
[1762573801951,0.69785316,102800.0,102790.0,0.0001456]
[1762573802146,0.5866971,102800.0,102790.0,0.0001456]
[1762573802353,0.69785316,102800.0,102790.0,0.0001456]
[1762573802548,0.69685316,102800.0,102790.0,0.0001456]
[1762573802750,0.69785316,102800.0,102790.0,0.0001456]
[1762573804150,0.69885316,102800.0,102790.0,0.0001456]
[1762573804451,0.67109554,102800.0,102790.0,0.0001456]
[1762573804649,0.75449398,102800.0,102790.0,0.0001456]
[1762573804853,0.1562884,102780.0,102770.0,0.22434926]
[1762573805055,0.19093725,102780.0,102770.0,0.22434926]
[1762573805852,0.19093725,102780.0,102770.0,0.14095082]
[1762573806053,0.19093725,102780.0,102770.0,0.22634926]
[1762573806253,0.1562884,102780.0,102770.0,0.22634926]
[1762573807252,0.1562884,102780.0,102770.0,0.22834926]
[1762573807652,0.09357885,102780.0,102770.0,0.24133926]
[1762573807954,0.0463156,102790.0,102780.0,0.1455784]
[1762573808159,0.0463156,102790.0,102780.0,0.31237528]
[1762573808862,0.0463156,102790.0,102780.0,0.5063784]
[1762573809054,0.0463156,102790.0,102780.0,0.67317528]
[1762573809655,0.1436645,102790.0,102780.0,0.57581688]
[1762573809962,0.5172245,102790.0,102780.0,0.21030688]
[1762573810263,0.5172245,102790.0,102780.0,0.10496844]
[1762573810264,0.55187335,102790.0,102780.0,0.10496844]
[1762573810457,0.1435284,102780.0,102770.0,0.10704496]
[1762573810658,0.5170884,102780.0,102770.0,0.12898496]
[1762573810855,0.55173725,102780.0,102770.0,0.12698496]
[1762573811251,0.5170884,102780.0,102770.0,0.12698496]
[1762573811655,0.5170884,102780.0,102770.0,0.12898496]
[1762573812059,0.5170884,102780.0,102770.0,0.13098496]
[1762573812566,0.63513569,102780.0,102770.0,0.02564652]
[1762573812765,0.68710896,102780.0,102770.0,0.02564652]
[1762573812965,0.68710896,102780.0,102770.0,0.04758652]
[1762573813665,0.63513569,102780.0,102770.0,0.00407652]
[1762573814067,0.63513569,102780.0,102770.0,0.02564652]
[1762573814760,0.63513569,102780.0,102770.0,0.14495442]
[1762573814966,0.55173725,102780.0,102770.0,0.22635286]
[1762573815567,0.55173725,102780.0,102770.0,0.22435286]
[1762573816070,0.55173725,102780.0,102770.0,0.12698496]
[1762573816662,0.60371052,102780.0,102770.0,0.12698496]
[1762573816869,0.55173725,102780.0,102770.0,0.12698496]
[1762573817059,0.55173725,102780.0,102770.0,0.22435286]
[1762573818470,0.60371052,102780.0,102770.0,0.22435286]
[1762573819160,0.60371052,102780.0,102770.0,0.14095442]
[1762573819563,0.56906167,102780.0,102770.0,0.22435286]
[1762573821356,0.56906167,102780.0,102770.0,0.12698496]
[1762573821871,0.65246011,102780.0,102770.0,0.12698496]
[1762573822462,0.67006444,102780.0,102770.0,0.04358652]
[1762573822664,0.67006444,102780.0,102770.0,0.12698496]
[1762573822958,0.67006444,102780.0,102770.0,0.02164652]
[1762573823163,0.67006444,102780.0,102770.0,7.652e-05]
[1762573824675,0.67006444,102780.0,102770.0,0.09744442]
[1762573824872,0.67006444,102780.0,102770.0,0.22435286]
[1762573825074,0.67006444,102780.0,102770.0,0.14095442]
[1762573825273,0.67006444,102780.0,102770.0,0.22435286]
[1762573825478,0.586666,102780.0,102770.0,0.22435286]
[1762573825871,0.67006444,102780.0,102770.0,0.22435286]
[1762573826068,0.41973,102780.0,102770.0,0.22435286]
[1762573826374,0.1285076,102780.0,102770.0,0.22435286]
[1762573826574,0.11097917,102780.0,102770.0,0.22435286]
[1762573827877,0.11097917,102780.0,102770.0,0.58515286]
[1762573828979,0.11097917,102780.0,102770.0,0.22435286]
[1762573829373,0.05893,102780.0,102770.0,0.58515286]
[1762573829572,0.11101746,102780.0,102770.0,0.58515286]
[1762573836582,0.11104458,102780.0,102770.0,0.58515286]
[1762573836775,0.1285076,102780.0,102770.0,0.58515286]
[1762573837083,0.1562884,102780.0,102770.0,0.58515286]
[1762573837775,0.05893,102780.0,102770.0,0.58515286]
[1762573838275,0.1285076,102780.0,102770.0,0.58515286]
[1762573839181,0.225866,102780.0,102770.0,0.58515286]
[1762573839379,0.225866,102780.0,102770.0,0.48778496]
[1762573839582,0.67006444,102780.0,102770.0,0.02164652]
[1762573839972,0.67006444,102780.0,102770.0,0.04325652]
[1762573840171,0.586666,102780.0,102770.0,0.22402286]
[1762573842086,0.67006444,102780.0,102770.0,0.12665496]
[1762573842383,0.67006444,102780.0,102770.0,7.652e-05]
[1762573842786,0.67006444,102780.0,102770.0,0.02293652]
[1762573843183,0.75346288,102780.0,102770.0,7.652e-05]
[1762573843486,0.77122405,102780.0,102770.0,7.652e-05]
[1762573844888,0.23837634,102770.0,102760.0,0.0001456]
[1762573845086,0.6686638,102770.0,102760.0,0.0001456]
[1762573845282,0.59917634,102770.0,102760.0,0.0001456]
[1762573845590,0.68651511,102770.0,102760.0,0.0001456]
[1762573845785,0.5992638,102770.0,102760.0,0.0001456]
[1762573846181,0.66871091,102770.0,102760.0,0.0001456]
[1762573846492,0.66871091,102770.0,102760.0,0.0975229]
[1762573846988,0.66871091,102770.0,102760.0,0.1424429]
[1762573847688,0.6022638,102770.0,102760.0,0.1424429]
[1762573847989,0.6052638,102770.0,102760.0,0.1424429]
[1762573848190,0.67469399,102770.0,102760.0,0.1424429]
[1762573852290,0.67469399,102770.0,102760.0,0.0001456]
[1762573852889,0.67469399,102770.0,102760.0,0.0230056]
[1762573853083,0.67469399,102770.0,102760.0,0.1424429]
[1762573853286,0.67469399,102770.0,102760.0,0.22584134]
[1762573853777,0.6052638,102770.0,102760.0,0.22584134]
[1762573854285,0.59121171,102770.0,102760.0,0.1424429]
[1762573854586,0.57724225,102770.0,102760.0,0.22584134]
[1762573854790,0.67461015,102770.0,102760.0,0.22584134]
[1762573854992,0.59121171,102770.0,102760.0,0.22584134]
[1762573856184,0.49384381,102770.0,102760.0,0.22584134]
[1762573856385,0.49384381,102770.0,102760.0,0.30923978]
[1762573856386,0.49184381,102770.0,102760.0,0.30923978]
[1762573856587,0.47450159,102770.0,102760.0,0.30923978]
[1762573856791,0.47450159,102770.0,102760.0,0.22584134]
[1762573856992,0.57186949,102770.0,102760.0,0.12846404]
[1762573857187,0.56986949,102770.0,102760.0,0.12846404]
[1762573857386,0.65326793,102770.0,102760.0,0.12846404]
[1762573857791,0.65226793,102770.0,102760.0,0.12846404]
[1762573857980,0.65326793,102770.0,102760.0,0.12846404]
[1762573858188,0.56986949,102770.0,102760.0,0.12846404]
[1762573858781,0.56986949,102770.0,102760.0,0.22584134]
[1762573859486,0.58721171,102770.0,102760.0,0.22584134]
[1762573859889,0.48984381,102770.0,102760.0,0.32211978]
[1762573860288,0.58721171,102770.0,102760.0,0.32211978]
[1762573860490,0.12904381,102770.0,102760.0,0.30923978]
[1762573860689,0.22641171,102770.0,102760.0,0.67003978]
[1762573861584,0.22641171,102770.0,102760.0,0.58664134]
[1762573862300,0.22641171,102770.0,102760.0,0.67003978]
[1762573862500,0.22641171,102770.0,102760.0,0.58664134]
[1762573862704,0.22641171,102770.0,102760.0,0.5032429]
[1762573862892,0.22641171,102770.0,102760.0,0.58664134]
[1762573863294,0.11173146,102770.0,102760.0,0.59952134]
[1762573863495,0.20909936,102770.0,102760.0,0.68291978]
[1762573864000,0.20909936,102770.0,102760.0,0.5161229]
[1762573864188,0.20909936,102770.0,102760.0,0.68291978]
[1762573864392,0.20909936,102770.0,102760.0,0.62734073]
[1762573865403,0.20909936,102770.0,102760.0,0.26654073]
[1762573865702,0.15706536,102770.0,102760.0,0.25366073]
[1762573866504,0.51786536,102770.0,102760.0,0.25366073]
[1762573867198,0.51786536,102770.0,102760.0,0.15628343]
[1762573867804,0.51786536,102770.0,102760.0,0.0450656]
[1762573868704,0.51786536,102770.0,102760.0,0.1424429]
[1762573869095,0.58721171,102770.0,102760.0,0.1424429]
[1762573870298,0.58721171,102770.0,102760.0,0.25366073]
[1762573871797,0.22641171,102770.0,102760.0,0.25366073]
[1762573872506,0.15706536,102770.0,102760.0,0.25366073]
[1762573873104,0.51786536,102770.0,102760.0,0.25366073]
[1762573873299,0.50783623,102770.0,102760.0,0.25366073]
[1762573873508,0.11590779,102770.0,102760.0,0.62734073]
[1762573873698,0.04640746,102770.0,102760.0,0.62734073]
[1762573874200,0.04640746,102770.0,102760.0,0.77694073]
[1762573874899,0.02337746,102770.0,102760.0,0.77694073]
[1762573875100,0.02529746,102770.0,102760.0,0.77694073]
[1762573875299,0.51974536,102770.0,102760.0,0.26081783]
[1762573875504,0.22844569,102770.0,102760.0,0.35819513]
[1762573875697,0.58824569,102770.0,102760.0,0.35819513]
[1762573875897,0.13007779,102770.0,102760.0,0.35819513]
[1762573876604,0.12907779,102770.0,102760.0,0.35819513]
[1762573877404,0.12907779,102770.0,102760.0,0.43791577]
[1762573884213,0.22644569,102770.0,102760.0,0.43791577]
[1762573885507,0.58724569,102770.0,102760.0,0.22932064]
[1762573885708,0.1568673,102760.0,102750.0,0.0001456]
[1762573886101,0.22636763,102760.0,102750.0,0.0001456]
[1762573887106,0.22636763,102760.0,102750.0,0.0021456]
[1762573887304,0.22636763,102760.0,102750.0,0.0041456]
[1762573888115,0.22636763,102760.0,102750.0,0.1015324]
[1762573888313,0.12899033,102760.0,102750.0,0.1015324]
[1762573888615,0.12899033,102760.0,102750.0,0.21275023]
[1762573888914,0.22636763,102760.0,102750.0,0.21275023]
[1762573892313,0.22636763,102760.0,102750.0,0.0041456]
[1762573892515,0.1568673,102760.0,102750.0,0.0041456]
[1762573892815,0.1568673,102760.0,102750.0,0.1015324]
[1762573893317,0.05949,102760.0,102750.0,0.1015324]
[1762573893813,0.05949,102760.0,102750.0,0.21275023]
[1762573894209,0.11159857,102760.0,102750.0,0.21275023]
[1762573894511,0.20897567,102760.0,102750.0,0.0041456]
[1762573894816,0.5176671,102760.0,102750.0,0.0041456]
[1762573895316,0.56976967,102760.0,102750.0,0.0041456]
[1762573896915,0.56976967,102760.0,102750.0,0.1015321]
[1762573897115,0.56976967,102760.0,102750.0,0.0041456]
[1762573897315,0.56976967,102760.0,102750.0,0.1015322]
[1762573900219,0.5176671,102760.0,102750.0,0.0041456]
[1762573900721,0.5176671,102760.0,102750.0,0.1015322]
[1762573902829,0.58716743,102760.0,102750.0,0.1015322]
[1762573914238,0.5176671,102760.0,102750.0,0.1015322]
[1762573915424,0.60500587,102760.0,102750.0,0.1015322]
[1762573918040,0.67451257,102760.0,102750.0,0.1015322]
[1762573918239,0.5871738,102760.0,102750.0,0.1015322]
[1762573919536,0.5176671,102760.0,102750.0,0.1015322]
[1762573920641,0.58717706,102760.0,102750.0,0.1015321]
[1762573921743,0.22637706,102760.0,102750.0,0.1015321]
[1762573921944,0.58717706,102760.0,102750.0,0.1015321]
[1762573924149,0.60500587,102760.0,102750.0,0.1015321]
[1762573926146,0.60500587,102760.0,102750.0,0.0041456]
[1762573926342,0.60500587,102760.0,102750.0,0.08758192]
[1762573927249,0.60500587,102760.0,102750.0,0.18496842]
[1762573928245,0.68844219,102760.0,102750.0,0.0041456]
[1762573928648,0.68844219,102760.0,102750.0,0.08758192]
[1762573933854,0.68844219,102760.0,102750.0,0.0041456]
[1762573935558,0.1550467,102750.0,102740.0,0.08343632]
[1762573935752,0.1550467,102750.0,102730.0,0.33043472]
[1762573935753,0.1550562,102740.0,102730.0,0.33043472]
[1762573935953,0.20728116,102740.0,102730.0,0.33043472]
[1762573936869,0.15513942,102740.0,102730.0,0.18083472]
[1762573937070,0.22566273,102740.0,102730.0,0.18483472]
[1762573937266,0.75333537,102740.0,102730.0,0.004]
[1762573937482,0.1550656,102730.0,102720.0,0.18085132]
[1762573937770,0.65139745,102730.0,102720.0,0.18085132]
[1762573937965,0.58538891,102730.0,102720.0,0.18085132]
[1762573938570,0.56792659,102730.0,102720.0,0.18085132]
[1762573938766,0.56892659,102730.0,102720.0,0.18685132]
[1762573938970,0.5786661,102730.0,102720.0,0.18685132]
[1762573939468,0.66210242,102730.0,102720.0,0.18685132]
[1762573939671,0.66210242,102730.0,102720.0,0.006]
[1762573939869,0.67956474,102730.0,102720.0,0.006]
[1762573940071,0.68056474,102730.0,102720.0,0.011]
[1762573940274,0.67956474,102730.0,102720.0,0.005]
[1762573940571,0.6620602,102730.0,102720.0,0.007]
[1762573940869,0.1550751,102720.0,102710.0,0.08351986]
[1762573941076,0.65141201,102720.0,102710.0,8.354e-05]
[1762573941565,0.65141201,102720.0,102710.0,0.09750814]
[1762573941771,0.65141201,102720.0,102710.0,0.18094446]
[1762573941967,0.56797569,102720.0,102710.0,0.18202446]
[1762573942570,0.58924522,102720.0,102710.0,0.18202446]
[1762573943177,0.58924522,102720.0,102710.0,0.18094446]
[1762573943363,0.58924522,102720.0,102710.0,0.18294446]
[1762573943565,0.58924522,102720.0,102710.0,0.18494446]
[1762573946374,0.22844522,102720.0,102710.0,0.18494446]
[1762573946872,0.13103012,102720.0,102710.0,0.18494446]
[1762573947073,0.26303812,102720.0,102710.0,0.18710446]
[1762573947574,0.26303812,102720.0,102710.0,0.18602446]
[1762573947778,0.16562302,102720.0,102710.0,0.54790446]
[1762573947972,0.65526131,102720.0,102710.0,0.00408354]
[1762573948275,0.65526131,102720.0,102710.0,0.08751986]
[1762573948669,0.1557041,102700.0,102690.0,0.5027624]
[1762573948878,0.07953953,102700.0,102690.0,0.58619992]
[1762573949967,0.17697363,102700.0,102690.0,0.04452]
[1762573950172,0.17697363,102700.0,102690.0,0.22539992]
[1762573950568,0.17697363,102700.0,102690.0,0.58619992]
[1762573950569,0.07953953,102700.0,102690.0,0.58619992]
[1762573950769,0.08153953,102700.0,102690.0,0.58719992]
[1762573951371,0.08153953,102700.0,102690.0,0.67063624]
[1762573951570,0.08153953,102700.0,102690.0,0.68160624]
[1762573953478,0.01825778,102700.0,102690.0,1.75808256]
[1762573953678,0.0001456,102710.0,102700.0,0.3805141]
[1762573953679,1e-07,102710.0,102700.0,0.3805141]
[1762573953976,0.05827,102740.0,102730.0,0.1330456]
[1762573954180,0.14487603,102750.0,102740.0,0.1330361]
[1762573954368,0.0928629,102750.0,102740.0,0.66070874]
[1762573954768,0.09294547,102750.0,102740.0,0.66070874]
[1762573954975,0.05835257,102750.0,102740.0,0.67167874]
[1762573955175,8.257e-05,102750.0,102740.0,0.91499874]
[1762573955375,8.257e-05,102750.0,102740.0,0.99843506]
[1762573955576,0.00208257,102750.0,102740.0,0.99843506]
[1762573957178,0.00108257,102750.0,102740.0,0.99943506]
[1762573957678,8.257e-05,102750.0,102740.0,0.75511506]
[1762573957880,0.02384257,102750.0,102740.0,0.67267874]
[1762573958084,0.00208257,102750.0,102740.0,0.67267874]
[1762573958384,0.04659257,102750.0,102740.0,0.67267874]
[1762573958886,0.02384257,102750.0,102740.0,0.67267874]
[1762573959282,0.06035257,102750.0,102740.0,0.67267874]
[1762573961300,7e-08,102750.0,102740.0,0.83585901]
[1762573961484,0.0001456,102760.0,102750.0,0.1330267]
[1762573961688,0.0590856,102760.0,102750.0,0.66069934]
[1762573962389,0.0451656,102760.0,102750.0,0.66069934]
[1762573962585,0.0001456,102760.0,102750.0,0.98741566]
[1762573962790,0.0938129,102780.0,102770.0,0.1330077]
[1762573963087,0.05922,102780.0,102770.0,0.66068034]
[1762573963389,0.06888866,102780.0,102770.0,0.66068034]
[1762573964190,0.07788866,102780.0,102770.0,0.66268034]
[1762573964390,0.07788866,102780.0,102770.0,0.57924402]
[1762573965697,0.07788866,102780.0,102770.0,0.66268034]
[1762573967884,0.06822,102780.0,102770.0,0.66268034]
[1762573968086,0.0312,102780.0,102770.0,0.66268034]
[1762573968990,0.009,102780.0,102770.0,0.66268034]
[1762573969291,0.0312,102780.0,102770.0,0.66268034]
[1762573969994,0.05446,102780.0,102770.0,0.66268034]
[1762573973194,0.05446,102780.0,102770.0,1.02348034]
[1762573973891,0.05446,102780.0,102770.0,1.17308034]
[1762573974793,0.009,102780.0,102770.0,1.17308034]
[1762573975497,0.0312,102780.0,102770.0,1.17308034]
[1762573977404,0.05446,102780.0,102770.0,1.17308034]
[1762573979301,0.06845,102780.0,102770.0,1.17308034]
[1762573979498,0.03449215,102800.0,102790.0,0.03506]
[1762573979703,0.09491215,102820.0,102810.0,0.0973298]
[1762573980003,0.00969118,102830.0,102820.0,0.1498103]
[1762573980203,0.06042,102840.0,102830.0,0.1401609]
[1762573980402,0.06042,102840.0,102830.0,0.58439722]
[1762573980912,0.06042,102840.0,102830.0,0.59536722]
[1762573981598,0.06242,102840.0,102830.0,0.59636722]
[1762573982600,0.07308483,102840.0,102830.0,0.59636722]
[1762573983606,0.05909483,102840.0,102830.0,0.59636722]
[1762573983799,0.53118623,102840.0,102830.0,0.12728632]
[1762573984003,0.07308483,102840.0,102830.0,0.22459722]
[1762573986410,0.05909483,102840.0,102830.0,0.23820722]
[1762573988307,0.05909483,102840.0,102830.0,0.26582398]
[1762573989817,0.17038633,102840.0,102830.0,0.02211]
[1762573990014,0.07308483,102840.0,102830.0,0.04385]
[1762573990216,0.17038633,102840.0,102830.0,0.04385]
[1762573991217,0.17038633,102840.0,102830.0,0.1411609]
[1762573993732,0.53118633,102840.0,102830.0,0.001]
[1762573994033,0.53118633,102840.0,102830.0,0.0983109]
[1762573994631,0.53118633,102840.0,102830.0,0.001]
[1762573995027,1.31176272,102840.0,102830.0,0.001]
[1762573995227,1.13118633,102840.0,102830.0,0.0983109]
[1762573995428,1.20070964,102840.0,102830.0,0.001]
[1762573995628,1.13118633,102840.0,102830.0,0.001]
[1762573996037,1.13118633,102840.0,102830.0,0.0983109]
[1762573996439,0.43388483,102840.0,102830.0,0.25221398]
[1762573996638,0.07308483,102840.0,102830.0,0.25221398]
[1762573997232,0.17038633,102840.0,102830.0,0.25221398]
[1762573997436,0.53118633,102840.0,102830.0,0.001]
[1762573997731,0.60070964,102840.0,102830.0,0.1194209]
[1762573998833,0.60070964,102840.0,102830.0,0.1411609]
[1762574000328,0.60070964,102840.0,102830.0,0.1194209]
[1762574000533,0.60070964,102840.0,102830.0,0.1411609]
[1762574000727,0.50340814,102840.0,102830.0,0.1411609]
[1762574000931,0.50340814,102840.0,102830.0,0.26582398]
[1762574001132,0.60070964,102840.0,102830.0,0.25221398]
[1762574001440,0.60070964,102840.0,102830.0,0.1411609]
[1762574002136,0.60070964,102840.0,102830.0,0.04385]
[1762574002441,0.60070964,102840.0,102830.0,0.1411609]
[1762574003141,0.60070964,102840.0,102830.0,0.04385]
[1762574003336,0.60070964,102840.0,102830.0,0.001]
[1762574003734,0.53118633,102840.0,102830.0,0.001]
[1762574004040,0.53118633,102840.0,102820.0,0.0001456]
[1762574004041,0.1577309,102830.0,102820.0,0.0001456]
[1762574004244,0.58768238,102830.0,102820.0,0.0001456]
[1762574006143,0.58768238,102830.0,102820.0,0.0011456]
[1762574006335,0.5185309,102830.0,102820.0,0.0021456]
[1762574006536,0.58776478,102830.0,102820.0,0.0021456]
[1762574006737,0.5185309,102830.0,102820.0,0.099466]
[1762574007146,0.5205309,102830.0,102820.0,0.098466]
[1762574007345,0.5225309,102830.0,102820.0,0.097466]
[1762574007542,0.60986967,102830.0,102820.0,0.097466]
[1762574008539,0.60986967,102830.0,102820.0,0.0001456]
[1762574008739,0.1548185,102800.0,102790.0,0.04344]
[1762574008939,0.58491982,102800.0,102790.0,0.1407888]
[1762574009146,0.48757132,102800.0,102790.0,0.1407888]
[1762574009646,0.48757132,102800.0,102790.0,0.25184188]
[1762574009846,0.41827,102800.0,102790.0,0.25184188]
[1762574010042,0.12776883,102800.0,102790.0,0.61264188]
[1762574010245,0.12976883,102800.0,102790.0,0.61663188]
[1762574010440,0.49056883,102800.0,102790.0,0.1407888]
[1762574010640,0.58790813,102800.0,102790.0,0.1407888]
[1762574010948,0.58890813,102800.0,102790.0,0.1407888]
[1762574013548,0.5196093,102800.0,102790.0,0.1407888]
[1762574013740,0.58890813,102800.0,102790.0,0.1407888]
[1762574014252,0.5196093,102800.0,102790.0,0.1407888]
[1762574014445,0.21070622,102800.0,102790.0,0.1407888]
[1762574014845,0.57150622,102800.0,102790.0,0.1407888]
[1762574015144,0.5196093,102800.0,102790.0,0.1407888]
[1762574015350,0.57150674,102800.0,102790.0,0.1407888]
[1762574016745,0.56950674,102800.0,102790.0,0.1407888]
[1762574017054,0.57050674,102800.0,102790.0,0.1407888]
[1762574017246,0.56950674,102800.0,102790.0,0.1407888]
[1762574017445,0.57050674,102800.0,102790.0,0.1407888]
[1762574017645,0.11236744,102800.0,102790.0,0.1407888]
[1762574017952,0.11236744,102800.0,102790.0,0.5015888]
[1762574018149,0.20970674,102800.0,102790.0,0.1407888]
[1762574018645,0.20970674,102800.0,102790.0,0.04344]
[1762574018849,0.57150674,102800.0,102790.0,0.04344]
[1762574019742,0.24533282,102800.0,102790.0,0.1407888]
[1762574019951,0.14799352,102800.0,102790.0,0.5151588]
[1762574020450,0.08310608,102800.0,102790.0,0.71164956]
[1762574020651,0.06104608,102800.0,102790.0,0.71164956]
[1762574020846,0.03862608,102800.0,102790.0,0.71164956]
[1762574021152,0.02642,102800.0,102790.0,0.71164956]
[1762574021750,0.04848,102800.0,102790.0,0.71164956]
[1762574021951,0.1458193,102800.0,102790.0,0.71164956]
[1762574023744,0.1458193,102800.0,102790.0,0.86124956]
[1762574024451,0.1458193,102800.0,102790.0,0.71164956]
[1762574024452,0.02642,102800.0,102790.0,0.71164956]
[1762574024653,0.004,102800.0,102790.0,0.71164956]
[1762574025139,0.02524,102800.0,102790.0,0.71164956]
[1762574025647,0.04742,102800.0,102790.0,0.71164956]
[1762574027354,0.20968674,102800.0,102790.0,0.04344]
[1762574029759,0.20968674,102800.0,102790.0,0.1407888]
[1762574030359,0.1537988,102790.0,102780.0,0.0458256]
[1762574030559,0.54928377,102790.0,102780.0,0.0001456]
[1762574030756,0.54928377,102790.0,102780.0,0.0229556]
[1762574030951,0.56649624,102790.0,102780.0,0.0458256]
[1762574031351,0.5145988,102790.0,102780.0,0.0458256]
[1762574031757,0.5155988,102790.0,102780.0,0.0458256]
[1762574032460,0.58489763,102790.0,102780.0,0.0458256]
[1762574032760,0.45333883,102790.0,102780.0,0.1571237]
[1762574032948,0.0540392,102790.0,102780.0,0.714499]
[1762574033152,0.08873191,102790.0,102780.0,0.714499]
[1762574033359,0.0752792,102790.0,102780.0,0.714499]
[1762574033863,0.0540392,102790.0,102780.0,0.714499]
[1762574034356,0.03670607,102790.0,102780.0,0.957739]
[1762574034664,0.002,102790.0,102780.0,0.714499]
[1762574034856,0.002,102790.0,102780.0,0.957739]
[1762574035862,0.002,102790.0,102780.0,0.714499]
[1762574036362,0.03670607,102790.0,102780.0,0.957739]
[1762574038263,0.03670607,102790.0,102780.0,1.107339]
[1762574039166,0.03670607,102790.0,102780.0,0.864099]
[1762574039465,0.03670607,102790.0,102780.0,1.107339]
[1762574039665,0.03670607,102790.0,102780.0,0.864099]
[1762574039866,0.03670607,102790.0,102780.0,1.107339]
[1762574040664,0.03670607,102790.0,102780.0,0.864099]
[1762574041061,0.03670607,102790.0,102780.0,1.107339]
[1762574041765,0.03670607,102790.0,102780.0,0.9107637]
[1762574041965,0.03670607,102790.0,102780.0,0.864099]
[1762574043563,0.002,102790.0,102780.0,0.864099]
[1762574043865,0.03670607,102790.0,102780.0,0.864099]
[1762574044469,0.03670607,102790.0,102780.0,1.107339]
[1762574045169,0.03670607,102790.0,102780.0,0.864099]
[1762574045758,0.08171607,102790.0,102780.0,0.864099]
[1762574050172,0.05878607,102790.0,102780.0,0.864099]
[1762574050372,0.05878607,102790.0,102780.0,0.797769]
[1762574051470,0.03670607,102790.0,102780.0,0.797769]
[1762574051869,0.08171607,102790.0,102780.0,0.797769]
[1762574052175,0.03670607,102790.0,102780.0,0.797769]
[1762574052376,0.03670607,102790.0,102780.0,0.83423842]
[1762574052576,0.05878607,102790.0,102780.0,0.83423842]
[1762574052868,0.03670607,102790.0,102780.0,0.91759578]
[1762574053263,0.03670607,102790.0,102780.0,0.83423842]
[1762574053877,0.1121486,102790.0,102750.0,0.41280359]
[1762574054074,0.1121486,102790.0,102730.0,0.00012024]
[1762574054075,0.10739599,102740.0,102730.0,0.0526158]
[1762574054373,0.10739599,102740.0,102730.0,0.01355024]
[1762574054374,0.19075335,102740.0,102730.0,0.01355024]
[1762574054766,0.21473976,102740.0,102730.0,0.00012024]
[1762574054965,0.1313824,102740.0,102730.0,0.00012024]
[1762574055166,0.93633976,102740.0,102730.0,0.00012024]
[1762574055365,0.93633976,102740.0,102730.0,0.00112024]
[1762574055868,1.02269712,102740.0,102730.0,0.00212024]
[1762574056068,1.03269712,102740.0,102730.0,0.00212024]
[1762574056576,0.99646546,102740.0,102730.0,0.00212024]
[1762574057377,0.4582054,102730.0,102720.0,0.0363956]
[1762574057676,0.61267487,102730.0,102720.0,0.0363956]
[1762574058678,0.61567487,102730.0,102720.0,0.0145756]
[1762574058879,0.61567487,102730.0,102720.0,0.0011456]
[1762574059075,0.61567487,102730.0,102720.0,0.0021456]
[1762574059377,0.67032608,102730.0,102720.0,0.0021456]
[1762574060080,0.67032608,102730.0,102720.0,0.0155756]